[Event "US Masters 2022"]
[Site "Charlotte"]
[Date "2022.11.24"]
[Round "2.4"]
[White "Luo, Terry"]
[Black "Naroditsky, Daniel"]
[Result "0-1"]
[ECO "E04"]
[WhiteElo "2365"]
[BlackElo "2617"]
[Annotator "TA"]
[PlyCount "84"]
[EventDate "2022.11.23"]
[EventType "swiss"]
[EventCountry "USA"]
[SourceTitle "playchess.com"]
[Source "ChessBase"]
[SourceQuality "1"]
[TimeControl "5400+30"]

{[%evp 11,84,19,18,27,39,23,67,0,0,0,0,0,2,-20,0,-6,8,9,49,61,42,48,37,0,0,0,226,210,200,211,197,195,213,219,220,219,275,274,291,285,305,204,293,289,316,335,325,227,227,227,227,228,212,-372,-365,-372,-227,-229,-140,-132,0,-460,-459,-1044,-1037,-933,-915,-968,-1008,-29975,-29976,-29994,-29995,-29995,-29996]} 1. d4 {[%emt 0:00:01]} Nf6 {[%emt 0:00:35]} 2. c4 {[%emt 0:00:19]} e6 {[%emt 0:00:15]} 3. g3 {[%emt 0:00:05]} d5 {[%emt 0:00:08]} 4. Bg2 {[%emt 0:00:05]} dxc4 {[%emt 0:00:15]} 5. Nf3 {[%emt 0:01:26]} c6 {[%emt 0:00:43]} 6. Ne5 {[%emt 0:04:18]} Bb4+ {[%emt 0:02:50]} 7. Bd2 {[%emt 0:04:44] E04: Open Catalan: 5 Nf3.} Be7 $1 {[%emt 0:01:11] 7...Be7 scores better than 7...Qxd4.} 8. e3 {[%emt 0:01:06]} b5 {[%emt 0:03:16][%cal Bb7b5,Bb5b4][%mdl 32]} 9. a4 {[%emt 0:08:40]} (9. Nxc6 $14 Nxc6 10. Bxc6+ Bd7 11. Bxa8 Qxa8 12. f3) 9... b4 $1 $11 {[%emt 0:04:17]} 10. Nxc4 {[%emt 0:03:09] [#]} Bb7 $146 {[%emt 0:05:57]} ({Predecessor:} 10... Nbd7 11. b3 Ba6 12. Bc1 Rc8 13. Bb2 c5 14. Nbd2 O-O 15. O-O cxd4 16. Bxd4 Nc5 {½-½ (28) Yu,Y (2738)-Caruana,F (2819) Stavanger 2019}) 11. O-O {[%emt 0:01:27]} O-O {[%emt 0:03:27]} 12. a5 {[%emt 0:03:55][%cal Ba4a5,Ba5a6][%mdl 32]} Qc8 {[%emt 0:07:28]} 13. Qf3 {[%emt 0:05:06]} Nbd7 {[%emt 0:14:28]} (13... Na6 $5 {[%cal Ra8b8]}) 14. Rc1 {[%emt 0:21:57][%cal Oa5a6] Threatens to win with a6!} Rb8 {[%emt 0:03:10]} 15. a6 $1 {[%emt 0:01:00]} Ba8 {[%emt 0:00:29]} (15... Bxa6 16. Na5 Rb6 17. Nxc6 $16) 16. Qe2 {[%emt 0:02:40]} c5 {[%emt 0:02:08]} 17. e4 {[%emt 0:06:15]} (17. Bxa8 {simplifies} Rxa8 18. Na5 Qe8 19. dxc5 Bxc5 20. Rc4) 17... cxd4 {[%emt 0:02:30]} 18. Bf4 {[%emt 0:03:57]} e5 $2 {[%emt 0:05:31]} (18... d3 $11 19. Qf1 Nc5) 19. Nxe5 $18 {[%emt 0:00:35][%mdl 64] Discovered Attack} Qxc1+ {[%emt 0:00:06]} 20. Bxc1 {[%emt 0:00:05]} Nxe5 {[%emt 0:00:02]} 21. Bf4 {[%emt 0:02:34]} d3 {[%emt 0:11:12]} 22. Qd1 {[%emt 0:04:39]} (22. Qe3 Rbc8 23. Bxe5 Ng4 $16) 22... Nfd7 {[%emt 0:00:57]} 23. Nd2 {[%emt 0:00:36]} Rbc8 {[%emt 0:02:08]} 24. Rc1 {[%emt 0:03:28] Prevents Rc2.} Rc6 {[%emt 0:02:43]} 25. Rxc6 {[%emt 0:00:42]} Bxc6 {[%emt 0:00:01]} 26. Be3 {[%emt 0:11:34] f4 is the strong threat.} Bb5 {[%emt 0:02:07]} (26... Nc5 $142 27. f4 Ned7) 27. f4 {[%emt 0:00:17]} (27. Bxa7 Ra8 $18) 27... Nc4 {[%emt 0:01:31]} 28. Nxc4 {[%emt 0:07:41]} (28. Bxa7 Nxd2 29. Qxd2 Bxa6 $16) 28... Bxc4 {[%emt 0:00:02]} 29. Qc1 {[%emt 0:00:42]} (29. Bxa7 Nc5 30. e5 (30. Qc1 Bxa6 31. Bf3 Rc8 $11) 30... Bxa6 $16) 29... Rc8 {[%emt 0:04:11]} 30. Bh3 $1 {[%emt 0:00:16]} (30. Bxa7 Bxa6 31. Qd1 Rc2 $15) 30... Bxa6 {[%emt 0:00:26]} 31. Qa1 {[%emt 0:00:24]} Bb5 {[%emt 0:00:28]} 32. Qxa7 $4 {[%emt 0:01:30][%mdl 8192]} (32. Qa5 $1 $18 {[%cal Ra5b5]} a6 33. Bxd7 Bxd7 34. Qxa6) 32... d2 $1 $19 {[%emt 0:01:39]} 33. Bg4 {[%emt 0:00:41][%cal Oa7b7] Inhibits d1Q+.} Rc1+ {[%emt 0:02:40]} 34. Kg2 {[%emt 0:00:21][%cal Oe3d2]} Bf1+ {[%emt 0:05:24]} 35. Kf2 {[%emt 0:00:11] [#]} Nf6 $40 {[%emt 0:00:59][%mdl 128] Black mounts an attack. Really sharp! Black is more active.} (35... d1=R $2 36. Bxc1 (36. Bxd7 Rc2+ $19) 36... Bc5+ {[#]} 37. Qxc5 $3 {[%mdl 512]} Nxc5 38. Bxd1 $18) ({Worse is} 35... d1=Q 36. Bxd1 Rxd1 37. Qa4 $15) (35... d1=N+ 36. Kxf1 Nxe3+ 37. Ke2 Nxg4 38. Qxd7 $16) (35... Bh3 $1 $17 {[%mdl 512] ( -> ...Rf1+)} 36. Qa8+ (36. Qxd7 $2 Rf1+ 37. Ke2 Bxg4+ 38. Kxf1 Bxd7 $19) 36... Nf8) 36. Qa8+ $2 {[%emt 0:01:22][%mdl 8192]} (36. Bxd2 $2 {perishes.} Nxg4+ 37. Kf3 Nxh2+ 38. Ke3 Ng4+ 39. Kf3 Nh2+ 40. Ke3 Bc5+ $19) (36. Bd1 $1 $11 {and White has nothing to worry.} Rxd1 37. Qxe7 Ng4+ 38. Kf3 Nxh2+ 39. Kf2 Ng4+ 40. Kf3 Nh2+ 41. Kf2 Ng4+ 42. Kf3 Nh2+) 36... Bf8 {[%emt 0:00:03]} 37. Bxd2 {[%emt 0:00:05]} (37. Bh5 $142 d1=Q 38. Bxd1 Rxd1 39. h3 Bxh3 40. Ke2) 37... Nxg4+ {[%emt 0:00:07]} 38. Kf3 {[%emt 0:00:01]} Nxh2+ {[%emt 0:01:00]} 39. Ke3 {[%emt 0:00:13]} Rc2 {[%emt 0:02:20]} 40. Bxb4 {[%emt 0:00:52]} Ng4+ {[%emt 0:00:04] Black mates.} 41. Kf3 {[%emt 0:00:08] [#]} h5 $1 {[%emt 0:00:31][%csl Gc2][%cal Rf1g2]} 42. Qxf8+ {[%emt 0:01:31]} Kh7 {[%emt 0:00:07] Weighted Error Value: White=0.79/Black=0.32} 0-1

[Event "US Masters 2022"]
[Site "Charlotte"]
[Date "2022.11.24"]
[Round "2.5"]
[White "Park, Evan"]
[Black "Theodorou, Nikolas"]
[Result "1/2-1/2"]
[ECO "B33"]
[WhiteElo "2364"]
[BlackElo "2598"]
[Annotator "TA"]
[PlyCount "157"]
[EventDate "2022.11.23"]
[EventType "swiss"]
[EventCountry "USA"]
[SourceTitle "playchess.com"]
[Source "ChessBase"]
[SourceQuality "1"]
[TimeControl "5400+30"]

{[%evp 28,157,-19,-22,-18,-16,-18,-27,0,0,-3,-3,0,0,-15,-8,0,-29,-12,-69,-71,-63,-37,-70,-72,-84,-81,-64,-70,-64,-32,-28,-39,-40,-33,-33,-28,-34,-20,-24,-25,-22,-12,-13,0,-13,-12,-12,-26,-30,-15,-20,-17,-24,-12,-12,-12,-12,-12,-12,-12,-12,-12,-12,-12,-12,-7,-21,-16,-33,-25,-30,-32,-35,-34,-34,-34,-34,-34,-39,-21,-22,-17,-34,-34,-34,-34,-34,-35,-52,-52,-53,-59,-86,-57,-89,-52,-73,-59,-59,-59,-59,-60,-60,-8,-9,-8,-8,-8,-8,-8,-8,-8,-8,-8,-8,-8,-8,-8,-8,-8,-8,-8,-8,0,0,0,0,0,0,0,0]} 1. e4 {[%emt 0:00:13]} c5 {[%emt 0:00:06]} 2. Nf3 {[%emt 0:00:02]} Nc6 {[%emt 0:00:07]} 3. d4 {[%emt 0:01:05]} cxd4 {[%emt 0:00:08]} 4. Nxd4 {[%emt 0:00:02]} Nf6 {[%emt 0:00:09]} 5. Nc3 {[%emt 0:00:08]} e5 {[%emt 0:00:11]} 6. Ndb5 {[%emt 0:00:09]} d6 {[%emt 0:00:08]} 7. Nd5 {[%emt 0:02:41]} Nxd5 {[%emt 0:00:07]} 8. exd5 {[%emt 0:00:04]} Nb8 {[%emt 0:00:04]} 9. c4 {[%emt 0:02:04]} Be7 {[%emt 0:00:31]} 10. Be2 {[%emt 0:01:06]} O-O {[%emt 0:00:41]} 11. O-O {[%emt 0:00:11]} a6 {[%emt 0:04:14]} 12. Nc3 {[%emt 0:00:50]} Nd7 {[%emt 0:00:16]} 13. Kh1 {[%emt 0:06:10]} f5 {[%emt 0:05:16]} 14. f4 {[%emt 0:00:55]} Bf6 {[%emt 0:01:46]} 15. Qc2 {[%emt 0:08:04] 15.Be3 is more advanced technology.} g6 {[%emt 0:06:10] B33: Sicilian: Pelikan and Sveshnikov Variations.} 16. Be3 {[%emt 0:03:21]} b6 {[%emt 1:18:36]} 17. Rae1 {[%emt 0:02:27] [#]} Qc7 $146 {[%emt 0:00:00] Black has an edge.} ({Predecessor:} 17... exf4 18. Bxf4 Ne5 19. b3 Bd7 20. a4 Re8 21. Qd2 Bg7 22. Na2 b5 23. axb5 axb5 24. cxb5 {½-½ (38) Hansen,L (2148)-Koestner,W (2292) ICCF email 2018}) 18. b3 {[%emt 0:09:37]} exf4 {[%emt 0:00:00]} 19. Bxf4 {[%emt 0:00:04]} Ne5 {[%emt 0:00:00]} 20. Qd2 {[%emt 0:05:16]} Bd7 {[%emt 0:00:00]} 21. a4 {[%emt 0:01:47]} Rae8 {[%emt 0:00:00]} 22. Bd1 {[%emt 0:08:41]} Rf7 {[%emt 0:00:00]} 23. Bg5 {[%emt 0:05:39]} (23. h3 $11) 23... Bxg5 $15 {[%emt 0:00:00]} 24. Qxg5 {[%emt 0:00:29]} Qc5 {[%emt 0:00:00]} (24... b5 $5 25. axb5 Qa5 $15) 25. Qe3 {[%emt 0:04:17]} Rfe7 {[%emt 0:04:30]} 26. Qg3 {[%emt 0:06:38]} Nf7 {[%emt 0:00:00]} 27. Rxe7 {[%emt 0:04:44]} Rxe7 {[%emt 0:00:00]} 28. Ne2 {[%emt 0:03:37]} Qe3 {[%emt 0:00:00]} 29. Qxe3 {[%emt 0:05:42]} Rxe3 {[%emt 0:00:00]} 30. Rf3 {[%emt 0:01:44]} Re8 {[%emt 0:00:00]} 31. Kg1 {[%emt 0:01:29]} Kg7 {[%emt 0:00:00]} 32. Nd4 {[%emt 0:03:18]} Kf6 {[%emt 0:00:00]} 33. Bc2 {[%emt 0:05:10]} Ne5 {[%emt 0:00:00]} 34. Re3 {[%emt 0:00:57]} Rb8 {[%emt 0:00:00]} 35. Re1 {[%emt 0:02:36]} Rc8 {[%emt 0:00:00]} 36. Ra1 {[%emt 0:03:18]} Rc5 {[%emt 0:00:00]} 37. Bd1 {[%emt 0:00:31]} b5 {[%emt 0:00:00]} 38. cxb5 {[%emt 0:02:34]} ({Reject} 38. axb5 axb5 39. Nxb5 Bxb5 40. cxb5 Rxb5 $17) 38... axb5 {[%emt 0:00:00]} 39. a5 {[%emt 0:00:29]} Rxd5 {[%emt 0:00:00]} 40. Nc2 {[%emt 0:00:25]} Rd2 {[%emt 0:00:00]} 41. Nb4 $1 {[%emt 0:00:31]} Bc6 {[%emt 0:00:00]} 42. Nxc6 {[%emt 0:00:21]} Nxc6 $11 {[%emt 0:00:00][%mdl 4096] Endgame KRB-KRN} 43. Bf3 {[%emt 0:01:22]} d5 {[%emt 0:00:00]} 44. b4 {[%emt 0:01:08]} Ke5 {[%emt 0:01:11][%cal Oc6a7]} 45. a6 {[%emt 0:00:24] aiming for a7.} Na7 $1 {[%emt 0:00:01]} (45... Nxb4 $2 46. a7 Kd4 47. a8=Q $18) 46. Re1+ {[%emt 0:00:34]} Kd6 {[%emt 0:00:02]} (46... Kf6 {simplifies} 47. Rc1 Ra2 48. Bxd5 Rxa6 49. Rc7 Ke5) 47. Re8 {[%emt 0:00:23]} Ra2 {[%emt 0:00:08]} 48. Rd8+ {[%emt 0:00:31]} Kc7 {[%emt 0:02:38]} 49. Rxd5 {[%emt 0:00:04]} Rxa6 {[%emt 0:00:11]} 50. Rc5+ {[%emt 0:00:30]} Kd6 {[%emt 0:00:44]} 51. Rd5+ {[%emt 0:00:43]} Ke6 {[%emt 0:01:02]} 52. Rc5 {[%emt 0:00:41]} Kd7 {[%emt 0:00:56]} 53. Be2 {[%emt 0:00:28]} Rb6 {[%emt 0:02:31]} 54. Kf2 {[%emt 0:00:20]} Kd6 {[%emt 0:00:02]} 55. Kg3 {[%emt 0:00:53]} Ra6 {[%emt 0:01:06] Threatens to win with ...Ra4.} 56. Bxb5 {[%emt 0:00:27]} Rb6 {[%emt 0:00:02]} 57. Be2 {[%emt 0:00:29]} Rxb4 {[%emt 0:00:03]} 58. Rc3 {[%emt 0:00:34]} Nc6 {[%emt 0:00:12]} 59. Bf3 {[%emt 0:00:30]} Ne5 {[%emt 0:00:18]} 60. Rc2 {[%emt 0:00:30]} Rb3 {[%emt 0:01:06]} 61. Rd2+ {[%emt 0:00:17]} Ke7 {[%emt 0:00:27]} 62. Rd5 {[%emt 0:00:33] Prevents g5.} Ke6 {[%emt 0:01:49][%cal Ob3f3] [#] White must now prevent ...Rxf3+!} 63. Ra5 $1 {[%emt 0:00:04]} g5 {[%emt 0:02:11]} 64. Ra6+ {[%emt 0:00:30]} Ke7 {[%emt 0:00:02] ...g4 is the strong threat.} 65. Ra7+ {[%emt 0:00:37]} Kd6 {[%emt 0:00:05]} (65... Nd7 $15 66. Kf2 Kd6) 66. Ra6+ $1 {[%emt 0:00:37] The position is equal.} Kc5 {[%emt 0:00:54] [#] And now ...g4 would win.} 67. Ra5+ {[%emt 0:00:32]} Rb5 {[%emt 0:00:12]} 68. Rxb5+ {[%emt 0:00:43]} Kxb5 {[%emt 0:00:02]} 69. h4 {[%emt 0:00:32]} Nxf3 {[%emt 0:01:17]} 70. hxg5 $1 {[%emt 0:00:36] KN-KPP} Nd4 {[%emt 0:01:35]} 71. Kf4 {[%emt 0:00:22]} Kc4 {[%emt 0:00:45]} 72. g4 $1 {[%emt 0:00:35]} fxg4 {[%emt 0:01:20]} 73. Kxg4 {[%emt 0:00:01] KN-KP} Ne6 {[%emt 0:00:32]} 74. Kh5 $1 {[%emt 0:00:28]} Kd5 {[%emt 0:00:25]} 75. Kh6 {[%emt 0:00:07]} Nf8 {[%emt 0:00:33]} 76. Kg7 {[%emt 0:00:03]} Ke6 {[%emt 0:00:03][%cal Oe6f5]} 77. Kxf8 {[%emt 0:00:04]} Kf5 {[%emt 0:00:02]} 78. Kg7 {[%emt 0:00:04]} Kxg5 {[%emt 0:00:03] ( -> ...h5)} 79. Kxh7 {[%emt 0:00:01] Weighted Error Value: White=0.06 (flawless) /Black=0.05 (flawless)} 1/2-1/2

[Event "US Masters 2022"]
[Site "Charlotte"]
[Date "2022.11.24"]
[Round "2.6"]
[White "Chen, Ryo"]
[Black "Hambleton, Aman"]
[Result "1-0"]
[ECO "C03"]
[WhiteElo "2269"]
[BlackElo "2437"]
[Annotator "TA"]
[PlyCount "97"]
[EventDate "2022.11.23"]
[EventType "swiss"]
[EventCountry "USA"]
[SourceTitle "playchess.com"]
[Source "ChessBase"]
[SourceQuality "1"]
[TimeControl "5400+30"]

{[%evp 9,97,26,21,12,26,25,33,30,27,29,21,20,29,28,19,17,30,29,23,18,15,0,0,0,17,12,33,30,40,-4,0,0,0,0,0,0,0,0,0,0,0,0,0,0,0,0,0,0,0,0,32,8,13,8,8,8,8,0,1187,1147,1162,1135,7519,4134,6279,5189,29948,5790,5966,5173,29970,29969,29978,29979,29979,29980,29980,29981,29981,29982,29982,29983,29983,29984,29984,29985,29985,29986,29986,372]} 1. e4 {[%emt 0:09:56]} e6 {[%emt 0:01:22]} 2. d4 {[%emt 0:00:51]} d5 {[%emt 0:00:13]} 3. Nd2 {[%emt 0:00:13]} h6 {[%emt 0:01:03]} 4. Bd3 {[%emt 0:02:14]} c5 {[%emt 0:01:56]} 5. Ngf3 {[%emt 0:01:04]} Nf6 {[%emt 0:01:21]} 6. exd5 {[%emt 0:07:01] C03: French Tarrasch: Unusual Black 3rd moves.} exd5 {[%emt 0:11:12]} 7. Qe2+ {[%emt 0:01:57]} Be7 {[%emt 0:01:29]} 8. dxc5 {[%emt 0:08:35] White is slightly better.} O-O {[%emt 0:00:29]} 9. Nb3 {[%emt 0:01:26]} Re8 {[%emt 0:17:28]} 10. Be3 {[%emt 0:09:55]} Nbd7 {[%emt 0:06:49][%cal Od7c5]} 11. Bb5 {[%emt 0:04:57][%cal Bd3b5,Bb5a4,Ba4b3][%mdl 32]} a6 {[%emt 0:09:32]} 12. Ba4 {[%emt 0:01:59]} Ne4 {[%emt 0:08:31][%cal Re4c5]} 13. O-O-O {[%emt 0:15:29][%cal Ba1d1,Bd1d5,Bd5d6][%mdl 32]} Nexc5 {[%emt 0:03:30]} 14. Nxc5 {[%emt 0:01:35]} Bxc5 {[%emt 0:00:09]} 15. Rxd5 {[%emt 0:02:31] [#] Hoping for Bxd7.} b5 {[%emt 0:00:39]} 16. Bb3 {[%emt 0:01:53][%cal Of3e5]} Bxe3+ {[%emt 0:00:17]} (16... Qc7 $5) 17. fxe3 {[%emt 0:00:13] [#]} Qb6 $146 {[%emt 0:01:12]} ({Predecessor:} 17... Qc7 18. Rhd1 Nc5 19. R5d4 Nxb3+ 20. axb3 Bf5 21. e4 Qe7 22. Re1 Bg6 {½-½ (22) Jovanovic,B (2072)-Schenning,A (2013) LSS email 2014}) 18. Rhd1 {[%emt 0:11:38]} Nc5 {[%emt 0:05:44]} ({Don't take} 18... Rxe3 19. Qd2 $16) 19. Qd2 {[%emt 0:05:59]} Bb7 {[%emt 0:17:06] Strongly threatening ...Nxb3+.} 20. Rd6 {[%emt 0:02:53]} Nxb3+ {[%emt 0:02:18]} 21. axb3 {[%emt 0:00:38]} Qxe3 {[%emt 0:00:20]} 22. Qxe3 {[%emt 0:00:58]} Rxe3 {[%emt 0:00:10]} 23. Rd8+ {[%emt 0:00:25]} Kh7 {[%emt 0:04:55]} 24. Rxa8 {[%emt 0:01:26]} Bxa8 {[%emt 0:00:04]} 25. Re1 {[%emt 0:01:02]} Rxe1+ {[%emt 0:02:57]} 26. Nxe1 $11 {[%emt 0:00:13][%mdl 4096] Endgame KB-KN} Kg6 {[%emt 0:01:35]} 27. Kd2 {[%emt 0:00:21]} f5 {[%emt 0:00:56]} 28. Ke3 {[%emt 0:01:02] Inhibits f4+.} Kf6 {[%emt 0:00:06]} 29. b4 {[%emt 0:02:50]} g5 {[%emt 0:00:57]} 30. g3 $1 {[%emt 0:00:09] Prevents f4+.} Be4 {[%emt 0:00:32]} 31. Nd3 {[%emt 0:01:14]} Bxd3 {[%emt 0:00:27]} 32. Kxd3 {[%emt 0:00:12] KP-KP} Ke5 {[%emt 0:00:18]} 33. Ke3 {[%emt 0:01:07]} Kd5 $2 {[%emt 0:00:49][%mdl 8192] [#] Black is on the road to losing.} (33... f4+ $11 34. gxf4+ gxf4+ 35. Kf3 Kd5) 34. b3 $1 $18 {[%emt 0:00:10]} Ke5 {[%emt 0:00:32]} 35. c4 {[%emt 0:00:26]} bxc4 {[%emt 0:00:28]} 36. bxc4 {[%emt 0:00:07]} Ke6 {[%emt 0:00:32]} 37. Kd4 {[%emt 0:00:48]} Kd6 {[%emt 0:00:07]} 38. h3 {[%emt 0:00:33]} (38. c5+ $142 Ke6 39. h4 Ke7 40. hxg5 hxg5 41. Ke5 f4 42. gxf4 a5 43. bxa5) 38... Ke6 {[%emt 0:00:38]} 39. c5 {[%emt 0:00:10]} Kf6 {[%emt 0:00:41]} 40. Kd5 {[%emt 0:00:13] White mates.} ({Stronger than} 40. c6 Ke7 41. Kc5 Kd8 $11) 40... h5 {[%emt 0:00:34]} 41. Kd6 {[%emt 0:00:29]} f4 {[%emt 0:00:28]} 42. gxf4 {[%emt 0:00:04]} g4 {[%emt 0:00:17]} 43. hxg4 {[%emt 0:00:22]} h4 {[%emt 0:00:16]} 44. c6 {[%emt 0:00:04]} h3 {[%emt 0:00:09]} 45. c7 {[%emt 0:00:08]} h2 {[%emt 0:00:08]} 46. c8=Q {[%emt 0:00:09]} (46. c8=B h1=Q 47. g5+ Kg6 48. Bxa6 Qd1+ 49. Kc7 Qc1+ 50. Kb6 Qxf4 $19) 46... h1=Q {[%emt 0:00:09]} 47. Qf8+ {[%emt 0:00:10]} Kg6 {[%emt 0:00:08]} 48. Qg8+ {[%emt 0:00:09]} Kf6 {[%emt 0:00:09]} 49. Qg5+ $2 {[%emt 0:00:04] Weighted Error Value: White=0.03 (flawless) /Black=0.41} (49. g5+ {mates} Kf5 50. Qd5+ Qxd5+ 51. Kxd5 Kg6 52. Ke6 Kh5 53. Kf5 a5 54. bxa5) 1-0

[Event "US Masters 2022"]
[Site "Charlotte"]
[Date "2022.11.24"]
[Round "2.7"]
[White "Plotkin, Mark"]
[Black "Yoo, Christopher Woojin"]
[Result "1/2-1/2"]
[ECO "B44"]
[WhiteElo "2361"]
[BlackElo "2573"]
[Annotator "TA"]
[PlyCount "63"]
[EventDate "2022.11.23"]
[EventType "swiss"]
[EventCountry "USA"]
[SourceTitle "playchess.com"]
[Source "ChessBase"]
[SourceQuality "1"]
[TimeControl "5400+30"]

{[%evp 17,63,0,0,-5,-2,-8,7,0,6,-41,-40,-56,-28,-47,-42,-48,-22,-31,-10,-19,-5,-15,27,6,23,24,12,18,91,35,33,47,42,40,37,52,41,35,41,45,41,24,22,20,15,12,16,9]} 1. c4 {[%emt 0:07:04]} Nf6 {[%emt 0:01:17]} 2. Nc3 {[%emt 0:00:31]} e6 {[%emt 0:00:50]} 3. e4 {[%emt 0:02:20]} c5 {[%emt 0:00:18]} 4. Nf3 {[%emt 0:00:47]} Nc6 {[%emt 0:00:20]} 5. d4 {[%emt 0:00:20]} cxd4 {[%emt 0:00:51]} 6. Nxd4 {[%emt 0:00:03]} Bb4 {[%emt 0:03:55]} 7. Nxc6 {[%emt 0:03:24]} dxc6 {[%emt 0:01:14]} 8. Qxd8+ {[%emt 0:01:15]} Kxd8 {[%emt 0:00:05]} 9. Bd2 {[%emt 0:02:26] 9.e5 might become the main line.} e5 {[%emt 0:00:22]} 10. f3 {[%emt 0:03:08] B44: Sicilian: Taimanov: 5 Nb5.} Be6 {[%emt 0:02:50]} 11. O-O-O {[%emt 0:08:31]} Ke7 {[%emt 0:04:24]} 12. a3 {[%emt 0:02:41]} Bc5 {[%emt 0:01:34] [#]} 13. b4 $146 {[%emt 0:00:18]} (13. Na4 $11 Bd4 14. Bb4+ Ke8 15. Nc5) ({Predecessor:} 13. Kc2 a5 14. g3 Rhd8 15. Be2 Bd4 16. b3 Nd7 17. Na4 b5 18. cxb5 cxb5 19. Bxb5 {0-1 (51) Makhno,M (1916)-Khegay,D (2528) Sevastopol 2021}) 13... Bd4 {[%emt 0:01:11]} 14. Ne2 {[%emt 0:01:49]} Bf2 {[%emt 0:02:11]} (14... Bxc4 $2 15. Nxd4 exd4 16. Bxc4 $18) 15. Ng3 {[%emt 0:04:33]} g6 {[%emt 0:07:02] Against Nf5+} 16. Bd3 {[%emt 0:00:53]} a5 {[%emt 0:07:16]} (16... Rhd8 {feels hotter.} 17. Kc2 c5 18. Rhf1 Bd4) 17. bxa5 {[%emt 0:07:42]} Nd7 {[%emt 0:01:49][%cal Bf6d7,Bd7c5,Bc5d3][%mdl 32]} (17... Ne8 $5 {[%cal Re8d6]}) 18. Rhf1 {[%emt 0:01:58]} Bc5 {[%emt 0:02:06]} 19. Nf5+ $1 {[%emt 0:12:09]} gxf5 {[%emt 0:02:39]} 20. exf5 {[%emt 0:00:18]} Bxa3+ {[%emt 0:06:46]} 21. Kc2 {[%emt 0:01:06]} Nc5 {[%emt 0:03:44] [#] Strongly threatening ...Nxd3.} 22. fxe6 {[%emt 0:00:27] aiming for Ra1.} Kxe6 {[%emt 0:03:56]} (22... Nxd3 $11 23. Kxd3 Kxe6) 23. Ra1 {[%emt 0:02:57]} (23. Be2 $16 {Black must now prevent Ra1.} Rhd8 24. g4) 23... Bb2 $14 {[%emt 0:03:40]} 24. Kxb2 {[%emt 0:00:19]} Nxd3+ {[%emt 0:00:05]} 25. Kc2 {[%emt 0:00:33]} Rhd8 {[%emt 0:02:56][%cal Od3b2]} 26. Rfb1 {[%emt 0:03:51]} Rd7 {[%emt 0:03:43]} 27. Rb6 {[%emt 0:01:39]} Nf4 {[%emt 0:10:26]} 28. Bxf4 {[%emt 0:05:44]} exf4 {[%emt 0:00:05]} 29. a6 {[%emt 0:00:19]} Rxa6 {[%emt 0:00:23]} 30. Raxa6 {[%emt 0:00:20] The position is equal.} bxa6 {[%emt 0:00:04]} 31. Rxa6 {[%emt 0:01:18]} Kd6 {[%emt 0:00:52]} 32. Ra5 {[%emt 0:00:25] Weighted Error Value: White=0.08 (flawless) /Black=0.12 (very precise)} 1/2-1/2

[Event "US Masters 2022"]
[Site "Charlotte"]
[Date "2022.11.24"]
[Round "2.8"]
[White "Gazik, Viktor"]
[Black "Ozenir, Ekin Baris"]
[Result "1/2-1/2"]
[ECO "A27"]
[WhiteElo "2564"]
[BlackElo "2352"]
[Annotator "TA"]
[PlyCount "67"]
[EventDate "2022.11.23"]
[EventType "swiss"]
[EventCountry "USA"]
[SourceTitle "playchess.com"]
[Source "ChessBase"]
[SourceQuality "1"]
[TimeControl "5400+30"]

{[%evp 18,67,34,34,30,16,22,9,19,10,27,7,32,25,25,16,30,31,32,27,39,22,50,24,54,17,19,17,20,15,21,0,14,0,0,0,0,0,0,0,0,-4,0,0,0,0,0,-60,-40,-131,-144,-100]} 1. c4 {[%emt 0:03:27]} e5 {[%emt 0:00:27]} 2. Nc3 {[%emt 0:00:09]} Nc6 {[%emt 0:00:08]} 3. Nf3 {[%emt 0:00:06]} g6 {[%emt 0:01:47]} 4. d4 {[%emt 0:01:40]} exd4 {[%emt 0:00:13]} 5. Nxd4 {[%emt 0:00:03]} Bg7 {[%emt 0:00:12]} 6. Nxc6 {[%emt 0:00:05]} bxc6 {[%emt 0:00:03]} 7. g3 {[%emt 0:00:05]} Ne7 {[%emt 0:00:23]} 8. Bg2 {[%emt 0:00:02]} O-O {[%emt 0:00:11]} 9. O-O {[%emt 0:00:04]} Rb8 {[%emt 0:06:22]} 10. Qc2 {[%emt 0:04:37]} c5 {[%emt 0:00:31] A27: English Opening: Three Knights Variation.} 11. Bg5 {[%emt 0:13:21]} h6 {[%emt 0:05:04]} 12. Be3 {[%emt 0:03:04]} d6 {[%emt 0:12:58] The position is equal.} 13. Rad1 {[%emt 0:01:10] And now Bxc5 would win.} Bd7 {[%emt 0:12:46] [#]} 14. b3 $146 {[%emt 0:00:06]} ({Predecessor:} 14. Bc1 Qc8 15. Nd5 Nxd5 16. Bxd5 Kh7 17. b3 Bf5 18. Qd2 Qa6 19. Kg2 Rbe8 20. Rfe1 {½-½ (43) Soukup,V (2144)-Stross,F (2265) Czech Republic 2018}) 14... Nf5 {[%emt 0:02:01]} 15. Bc1 {[%emt 0:00:02]} Nd4 {[%emt 0:10:18]} 16. Qd2 {[%emt 0:00:36]} Bc6 {[%emt 0:05:15]} 17. Nd5 {[%emt 0:11:00]} Bxd5 {[%emt 0:04:14]} 18. Bxd5 {[%emt 0:01:56]} Rb6 {[%emt 0:00:15]} 19. Qd3 {[%emt 0:03:05]} Kh7 {[%emt 0:02:48]} 20. Bd2 {[%emt 0:00:04]} Qd7 {[%emt 0:05:04]} 21. Rfe1 {[%emt 0:05:12]} (21. e3 $5 {[%cal Re3d4]} Nc6 22. f4 $14) 21... Nc6 {[%emt 0:01:23]} 22. a3 {[%emt 0:02:04]} Ne5 {[%emt 0:06:10]} 23. Qc2 {[%emt 0:00:51]} Rfb8 {[%emt 0:01:22]} 24. Rb1 {[%emt 0:03:48]} Ra6 {[%emt 0:02:00]} 25. Bc1 {[%emt 0:03:02]} h5 {[%emt 0:02:52]} 26. Rd1 {[%emt 0:03:43]} Rab6 {[%emt 0:03:36]} 27. Bd2 {[%emt 0:09:30]} Ra6 {[%emt 0:03:45]} 28. Bc1 {[%emt 0:00:07]} Rab6 {[%emt 0:00:04]} 29. Be4 {[%emt 0:00:01]} Qh3 {[%emt 0:01:07] [#] ...Ng4 is the strong threat.} 30. Bg2 {[%emt 0:00:51] A strong pair of Bishops.} Qf5 {[%emt 0:00:05]} 31. Be4 {[%emt 0:21:29]} Qh3 {[%emt 0:00:04] Strongly threatening ...Ng4.} 32. e3 {[%emt 0:01:22]} (32. Bg2 $11 Qf5 33. Be4 Qh3) 32... h4 $15 {[%emt 0:02:26] Hoping for ...Ng4.} 33. Rd5 {[%emt 0:00:01]} (33. Bg2 $15 Qf5 34. Qxf5 gxf5 35. f4 Nxc4 36. Bd5) 33... Qg4 $17 {[%emt 0:05:40]} 34. Bd2 {[%emt 0:06:06] Weighted Error Value: White=0.16 (very precise) /Black=0.06 (flawless)} 1/2-1/2